bitfinex/quotes_SOLUSD_20250809
["timestamp","ask_amount","ask_price","bid_price","bid_amount"]
[1754707235792,50.04984711,178.01,178.0,0.06]
[1754707241103,52.13537037,178.01,178.0,0.06]
[1754707241392,50.04984711,178.01,178.0,0.06]
[1754707241795,50.71984711,178.01,178.0,0.06]
[1754707241973,53.99450971,178.01,178.0,0.06]
[1754707242297,51.37408895,178.01,178.0,0.06]
[1754707243095,57.65952687,178.01,178.0,0.06]
[1754707243770,55.57424715,178.01,178.0,0.06]
[1754707243986,57.66100234,178.01,178.0,0.06]
[1754707245979,51.37556442,178.01,178.0,0.06]
[1754707246697,0.42648471,178.0,177.99,0.06]
[1754707246904,0.42648471,178.0,177.99,1e-08]
[1754707246905,12.72069911,178.0,177.99,1e-08]
[1754707247076,14.97238111,178.0,177.99,1e-08]
[1754707247691,8.7095845,178.0,177.99,1e-08]
[1754707248194,20.58833117,178.0,177.99,1e-08]
[1754707253301,14.32756202,178.0,177.99,1e-08]
[1754707253508,20.58702727,178.0,177.99,1e-08]
[1754707255815,20.58702727,178.0,177.98,0.06]
[1754707256002,45.0879025,177.99,177.98,0.06]
[1754707256304,45.7579025,177.99,177.98,0.06]
[1754707256899,51.37619566,177.99,177.98,0.06]
[1754707257403,57.63566091,177.99,177.98,0.06]
[1754707258182,51.37619566,177.99,177.98,0.06]
[1754707263388,50.70619566,177.99,177.98,0.06]
[1754707264112,11.40619566,177.99,177.98,0.73]
[1754707264313,53.31359638,177.99,177.98,0.73]
[1754707265211,55.39980576,177.99,177.98,0.73]
[1754707265913,50.70564985,177.99,177.98,0.73]
[1754707267922,55.39643198,177.99,177.98,0.73]
[1754707268219,55.39500495,177.99,177.98,0.73]
[1754707268398,53.3102226,177.99,177.98,0.73]
[1754707268593,50.70423227,177.99,177.98,0.73]
[1754707269615,55.3946213,177.99,177.98,0.73]
[1754707270123,50.70423227,177.99,177.98,0.73]
[1754707270711,50.70423227,177.99,177.98,0.06]
[1754707271895,50.03536727,177.99,177.98,0.73]
[1754707272216,53.31002987,177.99,177.98,0.73]
[1754707272412,50.03536727,177.99,177.98,0.73]
[1754707272723,53.31002987,177.99,177.98,0.73]
[1754707272898,10.5932057,177.99,177.98,0.73]
[1754707273215,44.89829316,177.99,177.98,0.73]
[1754707278203,44.92829316,177.99,177.98,0.73]
[1754707278603,39.31,177.99,177.98,0.73]
[1754707279705,44.92829316,177.99,177.98,0.73]
[1754707280113,39.31,177.99,177.98,0.73]
[1754707280422,0.03,177.99,177.98,4.0046626]
[1754707283827,0.03,177.99,177.98,35.62327143]
[1754707285917,0.03,177.99,177.98,26.73]
[1754707286145,0.03,177.99,177.98,4.0046626]
[1754707296924,0.03,177.99,177.98,9.62327143]
[1754707297125,0.03,177.99,177.98,24.729487]
[1754707303952,0.03,177.99,177.98,19.11087817]
[1754707304284,0.72,177.99,177.98,0.06]
[1754707305342,0.72,177.99,177.98,3.3346626]
[1754707305895,0.72,177.99,177.98,0.06]
[1754707306370,6.33829316,177.99,177.98,0.06]
[1754707311084,0.72,177.99,177.98,0.06]
[1754707311448,6.33829316,177.99,177.98,0.06]
[1754707312552,0.03,177.99,177.98,0.06]
[1754707312750,0.03,177.99,177.98,4.0446626]
[1754707313669,0.03,177.99,177.98,19.15087817]
[1754707313860,0.03,177.99,177.98,45.15087817]
[1754707314558,0.03,177.99,177.98,50.769487]
[1754707316179,0.03,177.99,177.98,47.4948244]
[1754707316382,0.03,177.99,177.98,50.769487]
[1754707316884,0.03,177.99,177.98,47.4948244]
[1754707317061,0.03,177.99,177.98,50.769487]
[1754707321985,0.03,177.99,177.98,44.44087817]
[1754707322483,0.03,177.99,177.98,50.769487]
[1754707322864,0.03,177.99,177.98,89.989487]
[1754707330293,0.03,177.99,177.98,63.989487]
[1754707334165,0.75,177.99,177.98,63.279487]
[1754707335189,0.75,177.99,177.98,89.279487]
[1754707335592,0.03,177.99,177.98,89.979487]
[1754707336170,0.03,177.99,177.98,64.54134788]
[1754707337097,0.03,178.02,177.98,78.06648299]
[1754707337296,0.03,178.07,178.06,0.42648471]
[1754707337475,2.280036,178.12,178.1,15.10621557]
[1754707337671,0.03,178.12,178.1,82.06028257]
[1754707337995,0.03,178.12,178.11,44.38087817]
[1754707338176,0.03,178.12,178.11,48.58100359]
[1754707338792,0.03,178.12,178.11,50.41490465]
[1754707340978,0.03,178.12,178.11,55.52346831]
[1754707342881,0.03,178.12,178.11,56.22346831]
[1754707343381,0.03,178.12,178.11,61.83797619]
[1754707343580,0.03,178.14,178.13,41.10621557]
[1754707343790,0.03,178.14,178.13,89.61490465]
[1754707344095,0.03,178.14,178.13,90.31490465]
[1754707344300,0.03,178.14,178.13,84.50634099]
[1754707344601,0.75,178.14,178.13,89.61490465]
[1754707346212,0.75,178.14,178.13,85.41477923]
[1754707346994,0.75,178.14,178.13,31.10856366]
[1754707347202,0.75,178.14,178.13,44.30856366]
[1754707347784,6.36356236,178.14,178.13,5.10856366]
[1754707349808,0.75,178.14,178.13,5.10856366]
[1754707350099,0.03,178.14,178.13,5.10856366]
[1754707350301,0.03,178.14,178.13,45.00856366]
[1754707350489,0.03,178.14,178.13,44.30856366]
[1754707352902,0.03,178.14,178.13,39.2]
[1754707353202,0.75,178.14,178.13,44.30856366]
[1754707354995,0.03,178.14,178.13,44.30856366]
[1754707355615,0.68,178.14,178.13,44.30856366]
[1754707358590,0.68,178.14,178.13,39.2]
[1754707358786,6.29356236,178.14,178.1,31.10856366]
[1754707359108,5.75856366,178.13,178.1,39.2]
[1754707359309,0.65,178.12,178.1,39.2]
[1754707360285,6.26422243,178.12,178.1,39.2]
[1754707360506,0.65,178.11,178.09,39.2]
[1754707361516,5.61422243,178.12,178.09,39.2]
[1754707361517,0.65,178.1,178.09,39.2]
[1754707361814,0.65,178.1,178.09,43.37158164]
[1754707362603,6.26422243,178.12,178.09,43.37158164]
[1754707362818,0.65,178.11,178.09,39.2]
[1754707363200,0.65,178.1,178.09,39.2]
[1754707363394,0.65,178.1,178.09,4.1731365]
[1754707364022,6.26482313,178.1,178.09,4.1731365]
[1754707364328,6.26482313,178.1,178.08,0.06]
[1754707364794,0.65,178.12,178.08,10.0428827]
[1754707364994,0.65,178.11,178.09,0.06]
[1754707365400,0.65,178.1,178.09,0.06]
[1754707365605,5.6145677,178.11,178.09,0.06]
[1754707365809,6.2645677,178.11,178.09,0.06]
[1754707366015,0.65,178.1,178.09,0.06]
[1754707367616,6.26482313,178.1,178.09,0.06]
[1754707368017,11.37338679,178.1,178.09,0.06]
[1754707377826,0.42648471,178.13,178.09,0.06]
[1754707377827,5.75856366,178.12,178.09,0.06]
[1754707378011,5.61419267,178.12,178.09,0.76]
[1754707378628,5.61419267,178.12,178.1,0.7]
[1754707378831,10.72275633,178.12,178.09,0.06]
[1754707379032,11.37275633,178.12,178.09,4.94680548]
[1754707379224,11.37275633,178.12,178.09,0.76]
[1754707380321,10.72275633,178.12,178.09,0.06]
[1754707380521,0.65,178.11,178.09,0.06]
[1754707381334,10.72275633,178.12,178.09,0.06]
[1754707381550,11.37275633,178.12,178.1,4.19187733]
[1754707381836,11.37275633,178.12,178.09,0.76]
[1754707382129,11.37275633,178.12,178.1,4.19180876]
[1754707382439,6.26419267,178.12,178.09,0.76]
[1754707382612,6.26419267,178.12,178.1,4.19244957]
[1754707382912,6.26419267,178.12,178.09,0.76]
[1754707383211,6.26419267,178.12,178.1,4.19244827]
[1754707383407,6.26419267,178.12,178.09,0.76]
[1754707383625,6.26419267,178.12,178.1,4.19265196]
[1754707383810,6.26419267,178.12,178.09,0.76]
[1754707384019,6.26419267,178.12,178.1,4.19265196]
[1754707384220,6.26419267,178.12,178.09,0.76]
[1754707384413,6.26419267,178.12,178.1,4.19288341]
[1754707384610,6.26419267,178.12,178.09,0.76]
[1754707384905,0.67,178.11,178.09,0.06]
[1754707385434,0.67,178.11,178.1,4.19340912]
[1754707385631,0.67,178.11,178.1,4.19327581]
[1754707385839,0.67,178.11,178.09,0.06]
[1754707386332,10.72275633,178.12,178.09,0.74]
[1754707386533,0.67,178.11,178.1,4.19358491]
[1754707386732,0.67,178.11,178.09,0.06]
[1754707387233,5.61450788,178.11,178.1,4.1937333]
[1754707387430,5.61450788,178.11,178.09,0.06]
[1754707387921,6.28450788,178.11,178.09,0.06]
[1754707389125,6.28450788,178.11,178.1,4.19452624]
[1754707389633,9.98300508,178.11,178.09,0.06]
[1754707389835,3.94201249,178.1,178.09,0.06]
[1754707391925,9.55683562,178.1,178.09,0.06]
[1754707392431,9.55683562,178.1,178.09,4.25665537]
[1754707392731,11.39886521,178.1,178.09,4.25665537]
[1754707392928,11.39886521,178.1,178.09,0.06]
[1754707393662,11.82534992,178.1,178.09,0.06]
[1754707398732,11.82534992,178.1,178.08,0.06]
[1754707398939,5.78404208,178.09,178.08,0.06]
[1754707400251,11.39918049,178.09,178.08,0.06]
[1754707401753,11.8256652,178.09,178.07,0.06]
[1754707401934,45.41052679,178.08,178.07,0.06]
[1754707402753,51.02598051,178.08,178.07,0.06]
[1754707406240,45.91193843,178.08,178.07,0.06]
[1754707406433,51.02598051,178.08,178.07,0.06]
[1754707407451,45.91193843,178.08,178.07,0.06]
[1754707407761,51.02598051,178.08,178.07,0.06]
[1754707408134,50.35598051,178.08,178.07,0.06]
[1754707408536,50.35598051,178.08,178.07,0.74]
[1754707409757,50.35598051,178.08,178.07,0.06]
[1754707410642,50.35598051,178.08,178.07,4.26140747]
[1754707411552,50.35598051,178.08,178.07,4.26162587]
[1754707411841,51.02598051,178.08,178.07,0.06]
[1754707412758,49.18601509,178.08,178.07,0.06]
[1754707413966,48.51601509,178.08,178.07,0.06]
[1754707414264,45.24193843,178.08,178.07,0.06]
[1754707414474,48.51601509,178.08,178.07,0.06]
[1754707415168,48.51601509,178.08,178.07,4.26165895]
[1754707415476,48.51601509,178.08,178.07,0.06]
[1754707418772,3.27407666,178.09,178.07,4.95154317]
[1754707418976,3.70056137,178.09,178.08,4.20154317]
[1754707419270,0.42648471,178.09,178.08,4.89154317]
[1754707420772,6.04162312,178.09,178.08,4.89154317]
[1754707423273,9.31569978,178.09,178.08,4.20154317]
[1754707423976,9.97569978,178.09,178.08,4.20154317]
[1754707424967,0.42648471,178.08,178.07,0.06]
[1754707425151,0.42648471,178.08,178.07,4.26238658]
[1754707425574,39.18,178.09,178.07,4.26238658]
[1754707425767,0.42648471,178.09,178.08,4.89238658]
[1754707426173,0.42648471,178.09,178.08,0.69]
[1754707426473,0.42648471,178.09,178.08,4.89199164]
[1754707426678,6.04162312,178.09,178.08,4.89199164]
[1754707427275,0.42648471,178.09,178.08,4.89199164]
[1754707428681,0.42648471,178.09,178.08,0.69]
[1754707428893,0.42648471,178.09,178.08,4.89327927]
[1754707429382,6.04162312,178.09,178.08,4.89327927]
[1754707429564,6.04162312,178.09,178.08,4.20327927]
[1754707429957,6.04162312,178.09,178.08,4.26327927]
[1754707430481,6.07162312,178.09,178.08,4.26327927]
[1754707431981,9.34569978,178.09,178.08,4.26327927]
[1754707432179,10.00569978,178.09,178.08,0.06]
[1754707432865,16.75113495,178.09,178.08,0.06]
[1754707434185,13.47705829,178.09,178.08,0.06]
[1754707434483,16.75113495,178.09,178.08,0.06]
[1754707436885,55.93113495,178.09,178.08,0.06]
[1754707441687,58.18154995,178.09,178.08,0.06]
[1754707442084,58.18154995,178.09,178.07,0.06]
[1754707442289,10.44599654,178.08,178.07,0.06]
[1754707442491,6.44132096,178.08,178.07,0.06]
[1754707442675,42.88056137,178.08,178.07,0.06]
[1754707443364,43.55056137,178.08,178.07,0.06]
[1754707443589,49.16601509,178.08,178.07,0.06]
[1754707444290,48.49601509,178.08,178.07,0.06]
[1754707446003,49.16601509,178.08,178.07,0.06]
[1754707446594,48.49601509,178.08,178.07,0.06]
[1754707456301,48.49601509,178.08,178.07,0.74]
[1754707456496,48.06953038,178.08,178.07,0.74]
[1754707456701,48.49601509,178.08,178.07,0.74]
[1754707457091,48.49601509,178.08,178.07,4.94466615]
[1754707457407,48.49601509,178.08,178.07,0.74]
[1754707457776,0.14216157,178.08,178.07,0.74]
[1754707457984,0.17216157,178.09,178.07,4.94442734]
[1754707458289,0.31432314,178.09,178.08,4.88442734]
[1754707458491,0.45648471,178.09,178.08,4.88442734]
[1754707461809,0.03,178.09,178.08,4.88442734]
[1754707464115,0.03,178.09,178.08,4.88194585]
[1754707464498,0.03,178.09,178.08,4.20194585]
[1754707464691,0.03,178.09,178.08,4.88194585]
[1754707470015,0.03,178.09,178.08,4.87981973]
[1754707472521,0.03,178.09,178.08,4.19981973]
[1754707473297,0.03,178.09,178.08,4.87981973]
[1754707475397,0.03,178.09,178.08,4.93981973]
[1754707478112,0.03,178.09,178.08,4.93809653]
[1754707489811,0.03,178.09,178.08,4.25809653]
[1754707492216,6.07162312,178.09,178.08,4.25809653]
[1754707492419,10.02569978,178.09,178.08,4.25809653]
[1754707492641,49.18569978,178.09,178.08,4.25809653]
[1754707492847,49.18569978,178.09,178.08,0.06]
[1754707495216,48.68569978,178.09,178.08,0.06]
[1754707495635,48.68569978,178.09,178.08,4.26392398]
[1754707496635,48.68569978,178.09,178.08,4.26432837]
[1754707496944,45.41162312,178.09,178.08,4.26432837]
[1754707497241,44.73162312,178.09,178.08,4.93432837]
[1754707497616,44.73162312,178.09,178.08,4.26432837]
[1754707498234,45.41162312,178.09,178.08,4.26432837]
[1754707499824,48.68569978,178.09,178.08,4.26432837]
[1754707501546,48.68569978,178.09,178.08,4.26804353]
[1754707504558,44.73162312,178.09,178.08,4.26804353]
[1754707505547,45.39162312,178.09,178.08,4.26804353]
[1754707505851,48.66569978,178.09,178.08,4.26804353]
[1754707509635,48.66569978,178.09,178.08,4.26752529]
[1754707510153,48.66569978,178.09,178.08,0.06]
[1754707510449,48.66569978,178.09,178.08,4.26716511]
[1754707512462,50.75047834,178.09,178.08,0.06]
[1754707512752,59.70660901,178.09,178.08,0.06]
[1754707513342,55.01764434,178.09,178.08,0.06]
[1754707513742,55.01764434,178.09,178.08,1e-08]
[1754707516246,26.0,178.07,178.06,0.06]
[1754707516439,0.42648471,178.06,178.05,0.06]
[1754707516652,4.36056137,178.06,178.05,0.06]
[1754707516867,26.42648471,178.05,178.04,0.06]
[1754707517045,71.58319498,178.05,178.04,0.06]
[1754707517247,0.42648471,178.04,178.02,0.06]
[1754707517663,4.36056137,178.04,178.02,0.06]
[1754707518576,9.97727671,178.04,178.02,0.06]
[1754707518950,6.70320005,178.04,178.02,0.06]
[1754707519144,9.97727671,178.04,178.02,0.06]
[1754707519343,6.04320005,178.04,178.02,0.06]
[1754707519546,6.04320005,178.04,178.02,0.75]
[1754707519749,9.31727671,178.04,178.02,0.75]
[1754707521096,11.56819871,178.04,178.02,0.75]
[1754707522079,12.22819871,178.04,178.02,0.06]
[1754707522670,11.56819871,178.04,178.02,0.06]
[1754707522978,12.22819871,178.04,178.02,0.06]
[1754707523475,8.95412205,178.04,178.02,0.06]
[1754707523677,12.22819871,178.04,178.02,0.06]
[1754707523980,11.56819871,178.04,178.02,0.06]
[1754707524278,44.89887691,178.04,178.03,0.75]
[1754707524772,45.18320005,178.04,178.03,0.75]
[1754707526974,48.45727671,178.04,178.03,0.06]
[1754707528365,48.45727671,178.04,178.03,0.75]
[1754707528884,45.18320005,178.04,178.03,0.75]
[1754707530085,45.04103848,178.04,178.03,0.75]
[1754707530592,45.04103848,178.04,178.03,0.06]
[1754707530884,48.31511514,178.04,178.03,0.06]
[1754707532683,48.97511514,178.04,178.03,0.06]
[1754707532883,49.11727671,178.04,178.03,0.06]
[1754707544094,75.11727671,178.04,178.03,0.06]
[1754707544292,77.36832471,178.04,178.03,0.06]
[1754707545007,77.36832471,178.04,178.03,1e-08]
[1754707545588,85.55596634,178.04,178.03,1e-08]
[1754707545787,59.55596634,178.04,178.03,1e-08]
[1754707546902,59.5556529,178.04,178.03,1e-08]
[1754707547908,0.28432314,178.03,178.02,1e-08]
[1754707548202,4.37056137,178.03,178.02,1e-08]
[1754707548592,6.45204426,178.03,178.02,1e-08]
[1754707548793,8.70334626,178.03,178.02,1e-08]
[1754707550006,14.32037709,178.03,178.02,1e-08]
[1754707550488,26.28432314,178.0,177.99,0.06]
[1754707550802,68.84056137,178.0,177.99,0.06]
[1754707551114,69.51056137,178.0,177.99,0.06]
[1754707551480,75.12853889,178.0,177.99,0.06]
[1754707551681,26.0,177.97,177.92,0.06]
[1754707552008,26.0,177.97,177.9,0.2]
[1754707552009,0.42648471,177.91,177.9,0.2]
[1754707552310,43.51056137,177.91,177.9,0.2]
[1754707552682,43.51056137,177.91,177.9,1e-08]
[1754707552683,62.54889889,177.91,177.9,1e-08]
[1754707552891,70.36481173,177.91,177.9,1e-08]
[1754707553292,75.03403446,177.91,177.9,1e-08]
[1754707553710,80.65485397,177.91,177.9,1e-08]
[1754707553917,75.98563124,177.91,177.9,1e-08]
[1754707554413,73.90664046,177.91,177.9,1e-08]
[1754707555914,67.67380462,177.91,177.9,1e-08]
[1754707556092,52.56758905,177.91,177.9,1e-08]
[1754707556490,73.01389651,177.91,177.9,0.66000001]
[1754707556686,39.00110434,177.91,177.9,0.66000001]
[1754707556887,78.58758905,177.91,177.9,0.66000001]
[1754707557115,52.58758905,177.91,177.9,0.66000001]
[1754707560915,45.20730422,177.91,177.9,0.66000001]
[1754707561416,6.04730422,177.91,177.9,0.66000001]
[1754707561617,5.90514265,177.91,177.9,0.66000001]
[1754707561997,6.04730422,177.91,177.9,0.66000001]
[1754707567618,0.28432314,177.91,177.9,0.66000001]
[1754707567826,0.28432314,177.91,177.9,5.78720784]
[1754707568004,0.28432314,177.92,177.9,5.78720784]
[1754707568198,0.28432314,177.92,177.91,0.66]
[1754707570721,0.42648471,177.93,177.91,0.66]
[1754707570922,5.847208,177.96,177.91,0.66]
[1754707571119,11.46676388,177.95,177.9,5.12720784]
[1754707571322,40.30648471,177.94,177.91,0.66]
[1754707572206,45.92657111,177.94,177.91,0.66]
[1754707573109,45.20657111,177.94,177.91,0.66]
[1754707575027,45.92657111,177.94,177.91,0.66]
[1754707576508,45.20657111,177.94,177.91,0.66]
[1754707576818,45.20657111,177.94,177.92,0.66]
[1754707577219,39.58648471,177.94,177.93,0.66]
[1754707577823,39.16,177.96,177.93,0.66]
[1754707578030,0.28432314,177.95,177.93,5.78720783]
[1754707578343,39.16,177.96,177.94,0.66]
[1754707578833,44.7792644,177.96,177.94,0.66]
[1754707580233,5.61895305,177.97,177.95,0.66]
[1754707580532,0.28432314,177.96,177.95,0.66]
[1754707582623,0.03,177.98,177.95,5.78720783]
[1754707582809,0.03,177.98,177.96,5.78720783]
[1754707583004,0.03,177.98,177.97,5.12720783]
[1754707583319,0.03,177.98,177.97,5.78720783]
[1754707597050,0.03,177.98,177.97,0.66]
[1754707597251,0.03,177.98,177.97,5.78720783]
[1754707597938,0.68,177.98,177.96,5.12720783]
[1754707598344,0.03,177.98,177.97,5.12720783]
[1754707598659,0.03,177.98,177.97,3.27606158]
[1754707600127,0.03,177.98,177.97,3.97606158]
[1754707600743,0.03,177.98,177.97,5.8188957]
[1754707600927,0.03,177.98,177.97,0.7]
[1754707601134,0.03,177.98,177.97,5.8188957]
[1754707601629,0.03,177.98,177.97,5.1188957]
[1754707604736,0.03,177.98,177.96,5.8188957]
[1754707605658,0.65,177.97,177.95,5.1188957]
[1754707605958,0.65,177.97,177.94,5.8188957]
[1754707606257,0.03,177.98,177.95,5.8188957]
[1754707606258,0.68,177.98,177.95,5.8188957]
[1754707609262,6.29863604,177.98,177.95,5.8188957]
[1754707610258,0.65,177.97,177.95,5.1188957]
[1754707611358,0.65,177.96,177.93,0.7]
[1754707611560,0.65,177.96,177.92,5.8188957]
[1754707612062,5.7688957,177.96,177.92,0.7]
[1754707612362,0.65,177.95,177.92,0.7]
[1754707614160,0.65,177.94,177.91,5.8188957]
[1754707614743,0.65,177.94,177.9,0.70000001]
[1754707614744,0.65,177.93,177.9,0.70000001]
[1754707614934,5.1188957,177.94,177.9,1e-08]
[1754707615266,0.65,177.92,177.9,1e-08]
[1754707615642,0.65,177.93,177.9,0.70000001]
[1754707617567,6.27024789,177.93,177.9,0.70000001]
[1754707617740,0.65,177.92,177.9,1e-08]
[1754707618643,0.65,177.93,177.9,1e-08]
[1754707618851,1.07648471,177.95,177.91,0.7]
[1754707619050,0.65,177.94,177.91,0.7]
[1754707620573,0.65,177.94,177.9,0.70000001]
[1754707620778,0.65,177.93,177.9,0.70000001]
[1754707620976,6.05321884,177.93,177.9,1e-08]
[1754707621477,5.7688957,177.92,177.9,1e-08]
[1754707621654,0.65,177.92,177.9,1e-08]
[1754707621968,0.65,177.91,177.9,1e-08]
[1754707622563,11.81619992,177.91,177.9,1e-08]
[1754707622749,6.69730422,177.91,177.9,1e-08]
[1754707622944,9.97722368,177.91,177.9,1e-08]
[1754707624671,11.82280713,177.91,177.9,1e-08]
[1754707628550,50.96280713,177.91,177.9,1e-08]
[1754707633473,50.99280713,177.91,177.9,1e-08]
[1754707635557,50.31280713,177.91,177.9,1e-08]
[1754707635766,50.99280713,177.91,177.9,1e-08]
[1754707636355,50.31280713,177.91,177.9,1e-08]
[1754707636564,50.31280713,177.91,177.9,0.70000001]
[1754707636766,50.31280713,177.91,177.9,1e-08]
[1754707644689,48.46736345,177.91,177.9,1e-08]
[1754707648186,49.14736345,177.91,177.9,1e-08]
[1754707649401,49.17736345,177.91,177.9,1e-08]
[1754707657988,45.21730422,177.91,177.9,1e-08]
[1754707658187,48.49736345,177.91,177.9,1e-08]
[1754707658388,45.21730422,177.91,177.9,1e-08]
[1754707658581,39.59648471,177.91,177.9,0.68000001]
[1754707658795,0.45648471,177.91,177.9,0.68000001]
[1754707661701,0.03,177.91,177.9,0.68000001]
[1754707667021,0.73,177.91,177.9,1e-08]
[1754707670309,6.35081951,177.91,177.9,1e-08]
[1754707670494,9.63087874,177.91,177.9,1e-08]
[1754707673020,49.19736345,177.91,177.9,1e-08]
[1754707674620,45.21730422,177.91,177.9,0.68000001]
[1754707676117,45.21730422,177.91,177.9,1e-08]
[1754707677226,48.49736345,177.91,177.9,1e-08]
[1754707678319,49.19736345,177.91,177.9,1e-08]
[1754707679927,48.49736345,177.91,177.9,1e-08]
[1754707680621,9.35736345,177.91,177.9,1e-08]
[1754707680827,10.05736345,177.91,177.9,1e-08]
[1754707684428,10.05736345,177.91,177.88,0.06]
[1754707684608,10.05736345,177.91,177.84,0.06]
[1754707684609,41.10621557,177.85,177.84,0.06]
[1754707684811,86.6020287,177.85,177.84,0.06]
[1754707685007,92.22474447,177.85,177.84,0.06]
[1754707685210,92.92474447,177.85,177.84,0.06]
[1754707685434,96.20480347,177.85,177.84,1e-08]
[1754707686310,100.89567147,177.85,177.84,1e-08]
[1754707688328,96.20480347,177.85,177.84,1e-08]
[1754707689530,94.11553428,177.85,177.84,1e-08]
[1754707699644,93.41553428,177.85,177.84,1e-08]
[1754707700029,94.11553428,177.85,177.84,1e-08]
[1754707701132,106.64621623,177.85,177.84,1e-08]
[1754707714157,106.67621623,177.85,177.84,1e-08]
[1754707714759,105.97621623,177.85,177.84,1e-08]
[1754707715668,106.66621623,177.85,177.84,1e-08]
[1754707716648,105.97621623,177.85,177.84,1e-08]
[1754707717271,105.97621623,177.85,177.84,0.69000001]
[1754707718873,21.46345672,177.85,177.84,0.69000001]
[1754707719248,12.56068195,177.85,177.84,0.69000001]
[1754707719767,18.18339772,177.85,177.84,0.69000001]
[1754707720948,18.60988243,177.85,177.84,0.69000001]
[1754707722860,21.88994166,177.85,177.84,0.69000001]
[1754707723563,18.60988243,177.85,177.84,0.69000001]
[1754707727389,12.56068195,177.85,177.84,0.69000001]
[1754707730360,12.56068195,177.85,177.84,3.97005924]
[1754707731189,12.56068195,177.85,177.84,0.69000001]
[1754707732991,18.60988243,177.85,177.84,0.69000001]
[1754707735185,18.60988243,177.85,177.84,1e-08]
[1754707735995,18.60988243,177.85,177.84,0.69000001]
[1754707736182,18.60988243,177.85,177.84,1e-08]
[1754707736578,19.29988243,177.85,177.84,1e-08]
[1754707736988,18.60988243,177.85,177.84,1e-08]
[1754707738191,18.60988243,177.85,177.84,0.69000001]
[1754707739271,18.60988243,177.85,177.84,1e-08]
[1754707742999,18.60988243,177.85,177.84,0.69000001]
[1754707743312,12.84500509,177.85,177.84,3.97005924]
[1754707743766,12.84500509,177.85,177.84,0.69000001]
[1754707743972,12.84500509,177.85,177.84,3.97005924]
[1754707744803,12.56068195,177.85,177.84,3.97005924]
[1754707748691,12.98716666,177.85,177.84,0.72000001]
[1754707748872,12.84500509,177.85,177.84,0.72000001]
[1754707749072,12.84500509,177.85,177.84,4.00005924]
[1754707749278,12.56068195,177.85,177.84,4.00005924]
[1754707752500,12.84500509,177.85,177.84,1e-08]
[1754707755399,19.29988243,177.85,177.84,1e-08]
[1754707758111,18.60988243,177.85,177.84,1e-08]
[1754707765316,19.29988243,177.85,177.84,1e-08]
[1754707766494,18.60988243,177.85,177.84,0.72000001]
[1754707767590,12.84500509,177.85,177.84,0.72000001]
[1754707767790,12.56068195,177.85,177.84,0.72000001]
[1754707767994,12.56068195,177.85,177.84,4.00005924]
[1754707768594,12.56068195,177.85,177.84,12.9031504]
[1754707768794,12.56068195,177.85,177.84,37.84954366]
[1754707774715,0.03,177.87,177.86,41.10621557]
[1754707774913,0.03,177.87,177.86,46.22862021]
[1754707775118,0.03,177.87,177.86,46.93862021]
[1754707775328,0.03,177.89,177.87,15.10621557]
[1754707775506,0.03,177.89,177.88,59.68862021]
[1754707775707,0.03,177.89,177.88,60.39862021]
[1754707776010,0.03,177.91,177.89,41.10621557]
[1754707776225,0.03,177.91,177.9,5.12240464]
[1754707776406,0.03,177.91,177.9,31.83240464]
[1754707776726,0.03,177.91,177.9,46.93862021]
[1754707778118,0.03,177.91,177.9,37.4535401]
[1754707781706,0.03,177.91,177.9,31.12240464]
[1754707783031,0.03,177.91,177.9,5.12240464]
[1754707784233,0.03,177.91,177.9,44.56240464]
[1754707786121,0.03,177.91,177.9,45.27240464]
[1754707787642,0.03,177.91,177.9,44.56240464]
[1754707791026,0.71,177.91,177.9,39.44]
[1754707793143,0.71,177.91,177.9,44.56240464]
[1754707794440,0.03,177.91,177.9,44.56240464]